[Event "*** Titled Tuesday Blitz"]
[Site "Chess.com"]
[Date "2019.12.03"]
[Round "6"]
[White "Aygehovit1992"]
[Black "Triumphmate"]
[Result "0-1"]
[WhiteElo "2618"]
[BlackElo "2421"]
[TimeControl "180+2"]
[EndTime "14:24:55 PST"]
[Termination "Triumphmate won by resignation"]

1. e4 {[%clk 0:02:49]} 1... e5 {[%clk 0:02:58.4]} 2. Nf3 {[%clk 0:02:48]} 2...
Nc6 {[%clk 0:02:58.5]} 3. Bb5 {[%clk 0:02:48.7]} 3... a6 {[%clk 0:02:59.1]} 4.
Ba4 {[%clk 0:02:49.3]} 4... Nf6 {[%clk 0:02:58]} 5. d3 {[%clk 0:02:50.6]} 5...
b5 {[%clk 0:02:55.5]} 6. Bb3 {[%clk 0:02:51.1]} 6... Bc5 {[%clk 0:02:57.2]} 7.
O-O {[%clk 0:02:50.2]} 7... d6 {[%clk 0:02:57.9]} 8. Nc3 {[%clk 0:02:50.3]} 8...
Na5 {[%clk 0:02:55.1]} 9. Bg5 {[%clk 0:02:51]} 9... c6 {[%clk 0:02:53.1]} 10.
Ne2 {[%clk 0:02:25.4]} 10... Nxb3 {[%clk 0:02:45.5]} 11. axb3 {[%clk 0:02:25.5]}
11... h6 {[%clk 0:02:44.2]} 12. Bh4 {[%clk 0:02:20]} 12... g5 {[%clk 0:02:41.8]}
13. Bg3 {[%clk 0:02:21.2]} 13... Bb6 {[%clk 0:02:30.8]} 14. Qe1 {[%clk 0:02:03]}
14... Bg4 {[%clk 0:02:27.3]} 15. Qc3 {[%clk 0:01:25.5]} 15... c5 {[%clk
0:02:19]} 16. Nxe5 {[%clk 0:01:15.5]} 16... b4 {[%clk 0:02:12.6]} 17. Qe1 {[%clk
0:00:56.6]} 17... dxe5 {[%clk 0:02:02.3]} 18. Bxe5 {[%clk 0:00:58.5]} 18... Bc7
{[%clk 0:01:55]} 19. f4 {[%clk 0:00:47.6]} 19... Bxe5 {[%clk 0:01:30.1]} 20.
fxe5 {[%clk 0:00:47.5]} 20... Bxe2 {[%clk 0:01:27.9]} 21. Qxe2 {[%clk
0:00:47.9]} 21... Qd4+ {[%clk 0:01:25.8]} 22. Kh1 {[%clk 0:00:48.1]} 22... Qxe5
{[%clk 0:01:25.1]} 23. Rf5 {[%clk 0:00:47.8]} 23... Qe7 {[%clk 0:01:22.1]} 24.
Raf1 {[%clk 0:00:45.8]} 24... Nd7 {[%clk 0:01:20.1]} 25. Rxf7 {[%clk 0:00:42.6]}
25... Qxf7 {[%clk 0:01:20.4]} 26. Rxf7 {[%clk 0:00:44.5]} 26... Kxf7 {[%clk
0:01:22.3]} 27. Qf3+ {[%clk 0:00:42.1]} 27... Ke7 {[%clk 0:01:21.3]} 28. h3
{[%clk 0:00:40.5]} 28... Raf8 {[%clk 0:01:14.3]} 29. Qg3 {[%clk 0:00:41.6]}
29... Rf4 {[%clk 0:01:11.4]} 30. c3 {[%clk 0:00:41]} 30... Rb8 {[%clk
0:01:07.8]} 31. Qe1 {[%clk 0:00:25.5]} 31... bxc3 {[%clk 0:01:02.9]} 32. Qxc3
{[%clk 0:00:26.6]} 32... Rf7 {[%clk 0:00:59.7]} 33. Qc4 {[%clk 0:00:25.3]} 33...
Rb6 {[%clk 0:00:55.1]} 34. b4 {[%clk 0:00:26.3]} 34... Rxb4 {[%clk 0:00:52.2]}
35. Qxa6 {[%clk 0:00:27.1]} 35... Rf1+ {[%clk 0:00:50.1]} 36. Kh2 {[%clk
0:00:28]} 36... Rb6 {[%clk 0:00:52]} 37. Qa3 {[%clk 0:00:17.9]} 37... Rf2 {[%clk
0:00:49.8]} 38. b3 {[%clk 0:00:17.1]} 38... Rb4 {[%clk 0:00:45.8]} 39. Qa6
{[%clk 0:00:15.4]} 39... Rf6 {[%clk 0:00:43.4]} 40. Qa3 {[%clk 0:00:16.2]} 40...
Rd6 {[%clk 0:00:41.1]} 41. Qb2 {[%clk 0:00:14.9]} 41... Rbd4 {[%clk 0:00:39.7]}
42. Qe2 {[%clk 0:00:12.8]} 42... Ne5 {[%clk 0:00:37.5]} 43. Qf2 {[%clk
0:00:09.4]} 43... Rf6 {[%clk 0:00:38.1]} 44. Qg3 {[%clk 0:00:08.8]} 44... Ke6
{[%clk 0:00:36.4]} 45. Qe1 {[%clk 0:00:08.5]} 45... Nxd3 {[%clk 0:00:34.1]} 46.
Qa5 {[%clk 0:00:09.1]} 46... Ke5 {[%clk 0:00:32.2]} 47. b4 {[%clk 0:00:06.3]}
47... Rxb4 {[%clk 0:00:30.6]} 48. Qd8 {[%clk 0:00:06]} 48... Rd6 {[%clk
0:00:28.2]} 49. Qe7+ {[%clk 0:00:05]} 49... Re6 {[%clk 0:00:29.5]} 50. Qd8
{[%clk 0:00:05.4]} 50... Rd4 {[%clk 0:00:27.3]} 51. Qh8+ {[%clk 0:00:05]} 51...
Kxe4 {[%clk 0:00:27.6]} 52. Qh7+ {[%clk 0:00:06.4]} 52... Ke3 {[%clk 0:00:25.3]}
53. Qf7 {[%clk 0:00:07.6]} 53... Re5 {[%clk 0:00:23.8]} 54. Qf6 {[%clk
0:00:08.2]} 54... c4 {[%clk 0:00:21.6]} 55. Qxh6 {[%clk 0:00:09.3]} 55... c3
{[%clk 0:00:22.2]} 56. Qc6 {[%clk 0:00:10.7]} 56... Kd2 {[%clk 0:00:19.2]} 57.
Qb6 {[%clk 0:00:07.9]} 57... c2 {[%clk 0:00:19.8]} 58. Qxd4 {[%clk 0:00:06.8]}
58... c1=Q {[%clk 0:00:21.1]} 59. Qg4 {[%clk 0:00:07.4]} 59... Qc7 {[%clk
0:00:18.9]} 60. g3 {[%clk 0:00:06.1]} 60... Re2+ {[%clk 0:00:17.1]} 0-1

[Event "*** Titled Tuesday Blitz"]
[Site "Chess.com"]
[Date "2019.12.03"]
[Round "6"]
[White "2165149677570"]
[Black "misha_melnichuk"]
[Result "1/2-1/2"]
[WhiteElo "2343"]
[BlackElo "2485"]
[TimeControl "180+2"]
[EndTime "14:25:21 PST"]
[Termination "Game drawn - insufficient material"]

1. d4 {[%clk 0:03:01.9]} 1... g6 {[%clk 0:03:00.7]} 2. c4 {[%clk 0:03:02.2]}
2... Bg7 {[%clk 0:03:02.1]} 3. e4 {[%clk 0:03:00.8]} 3... d6 {[%clk 0:03:02.2]}
4. Nc3 {[%clk 0:03:02.3]} 4... Nf6 {[%clk 0:03:03.8]} 5. f3 {[%clk 0:03:03.9]}
5... O-O {[%clk 0:03:02.8]} 6. Nge2 {[%clk 0:03:05.2]} 6... c5 {[%clk
0:03:04.2]} 7. d5 {[%clk 0:03:06.7]} 7... e6 {[%clk 0:03:05.4]} 8. Ng3 {[%clk
0:03:08.2]} 8... exd5 {[%clk 0:03:07.1]} 9. cxd5 {[%clk 0:03:10.1]} 9... a6
{[%clk 0:03:07.6]} 10. a4 {[%clk 0:03:10.5]} 10... Nbd7 {[%clk 0:03:03.1]} 11.
Be2 {[%clk 0:03:11.6]} 11... h5 {[%clk 0:03:03.2]} 12. Bg5 {[%clk 0:03:12.2]}
12... Qb6 {[%clk 0:02:59.9]} 13. Qd2 {[%clk 0:03:09.7]} 13... Ne5 {[%clk
0:02:56]} 14. O-O {[%clk 0:03:10.4]} 14... Nh7 {[%clk 0:02:42.7]} 15. Be3 {[%clk
0:03:10.8]} 15... h4 {[%clk 0:02:31.3]} 16. Nh1 {[%clk 0:03:12.1]} 16... f5
{[%clk 0:02:29.3]} 17. Rfb1 {[%clk 0:03:01.6]} 17... Qd8 {[%clk 0:02:15]} 18.
Nf2 {[%clk 0:02:58.7]} 18... Bd7 {[%clk 0:02:07]} 19. Bh6 {[%clk 0:02:13.6]}
19... Bxh6 {[%clk 0:01:53.7]} 20. Qxh6 {[%clk 0:02:15.5]} 20... Qg5 {[%clk
0:01:53.2]} 21. Qxg5 {[%clk 0:02:16.7]} 21... Nxg5 {[%clk 0:01:50.4]} 22. f4
{[%clk 0:02:18.3]} 22... fxe4 {[%clk 0:01:18.8]} 23. fxe5 {[%clk 0:02:02.6]}
23... e3 {[%clk 0:00:52.9]} 24. Nfd1 {[%clk 0:01:49.7]} 24... h3 {[%clk
0:00:32.8]} 25. Nxe3 {[%clk 0:01:46.2]} 25... dxe5 {[%clk 0:00:29.9]} 26. Rf1
{[%clk 0:01:36.3]} 26... hxg2 {[%clk 0:00:28.6]} 27. Rxf8+ {[%clk 0:01:33.5]}
27... Rxf8 {[%clk 0:00:27.1]} 28. Kxg2 {[%clk 0:01:34.9]} 28... Nh3 {[%clk
0:00:21.3]} 29. Kg3 {[%clk 0:01:31.8]} 29... Nf4 {[%clk 0:00:20.5]} 30. Rf1
{[%clk 0:01:31.6]} 30... Bxa4 {[%clk 0:00:16.6]} 31. Bg4 {[%clk 0:01:28]} 31...
Bb3 {[%clk 0:00:11.6]} 32. Ne2 {[%clk 0:01:19.6]} 32... g5 {[%clk 0:00:08.2]}
33. h4 {[%clk 0:01:16.2]} 33... gxh4+ {[%clk 0:00:08.6]} 34. Kxh4 {[%clk
0:01:17.2]} 34... Ng2+ {[%clk 0:00:08.2]} 35. Kg5 {[%clk 0:00:57.3]} 35... Nxe3
{[%clk 0:00:07.7]} 36. Be6+ {[%clk 0:00:58.8]} 36... Kg7 {[%clk 0:00:08.4]} 37.
Rh1 {[%clk 0:00:27.1]} 37... Bxd5 {[%clk 0:00:09.7]} 38. Bxd5 {[%clk 0:00:26.8]}
38... Rf5+ {[%clk 0:00:09.5]} 39. Kh4 {[%clk 0:00:27.2]} 39... Nxd5 {[%clk
0:00:10.6]} 40. Kg4 {[%clk 0:00:26.1]} 40... Rf6 {[%clk 0:00:11.2]} 41. Ng3
{[%clk 0:00:25.6]} 41... Ne3+ {[%clk 0:00:12.3]} 42. Kh4 {[%clk 0:00:24.7]}
42... Nf5+ {[%clk 0:00:11]} 43. Nxf5+ {[%clk 0:00:22.5]} 43... Rxf5 {[%clk
0:00:12.9]} 44. Kg4 {[%clk 0:00:22.8]} 44... Rf4+ {[%clk 0:00:14.4]} 45. Kg3
{[%clk 0:00:24]} 45... Rb4 {[%clk 0:00:14.6]} 46. Rc1 {[%clk 0:00:21.3]} 46...
b6 {[%clk 0:00:14.4]} 47. Rc2 {[%clk 0:00:22.9]} 47... Kf6 {[%clk 0:00:15.3]}
48. Kf3 {[%clk 0:00:24.6]} 48... a5 {[%clk 0:00:14.8]} 49. Ke3 {[%clk 0:00:26]}
49... a4 {[%clk 0:00:16.1]} 50. Kd3 {[%clk 0:00:27.9]} 50... Ke6 {[%clk
0:00:16.8]} 51. Kc3 {[%clk 0:00:29.2]} 51... Kd5 {[%clk 0:00:17.8]} 52. Rd2+
{[%clk 0:00:30.3]} 52... Rd4 {[%clk 0:00:16.5]} 53. Rh2 {[%clk 0:00:30.7]} 53...
b5 {[%clk 0:00:17.5]} 54. Rh8 {[%clk 0:00:31.6]} 54... b4+ {[%clk 0:00:19]} 55.
Kc2 {[%clk 0:00:32.7]} 55... Kc4 {[%clk 0:00:19.7]} 56. Ra8 {[%clk 0:00:34.1]}
56... b3+ {[%clk 0:00:19.2]} 57. Kc1 {[%clk 0:00:35.6]} 57... Kd3 {[%clk
0:00:20.5]} 58. Re8 {[%clk 0:00:35.7]} 58... Re4 {[%clk 0:00:21.4]} 59. Rd8+
{[%clk 0:00:36.7]} 59... Kc4 {[%clk 0:00:22.3]} 60. Ra8 {[%clk 0:00:34.5]} 60...
Re1+ {[%clk 0:00:22.1]} 61. Kd2 {[%clk 0:00:35.7]} 61... Rb1 {[%clk 0:00:22.9]}
62. Rxa4+ {[%clk 0:00:36.8]} 62... Kb5 {[%clk 0:00:24.5]} 63. Re4 {[%clk
0:00:32.1]} 63... Rxb2+ {[%clk 0:00:25.7]} 64. Kc3 {[%clk 0:00:33.8]} 64... Rb1
{[%clk 0:00:23.5]} 65. Rxe5 {[%clk 0:00:34.9]} 65... Kb6 {[%clk 0:00:17.6]} 66.
Re6+ {[%clk 0:00:29.5]} 66... Kc7 {[%clk 0:00:17.7]} 67. Rh6 {[%clk 0:00:17.3]}
67... Kb7 {[%clk 0:00:17.3]} 68. Rg6 {[%clk 0:00:18]} 68... c4 {[%clk
0:00:18.1]} 69. Kxc4 {[%clk 0:00:15.4]} 69... b2 {[%clk 0:00:16.2]} 70. Kb3
{[%clk 0:00:16.5]} 70... Kc7 {[%clk 0:00:14.4]} 71. Rg2 {[%clk 0:00:14.6]} 71...
Kc6 {[%clk 0:00:13.9]} 72. Rc2+ {[%clk 0:00:14.7]} 72... Kb5 {[%clk 0:00:14.2]}
73. Rxb2 {[%clk 0:00:16.6]} 73... Rxb2+ {[%clk 0:00:15]} 74. Kxb2 {[%clk
0:00:17.5]} 1/2-1/2

[Event "*** Titled Tuesday Blitz"]
[Site "Chess.com"]
[Date "2019.12.03"]
[Round "6"]
[White "masrahi"]
[Black "brendan174"]
[Result "1/2-1/2"]
[WhiteElo "1952"]
[BlackElo "2108"]
[TimeControl "180+2"]
[EndTime "14:25:35 PST"]
[Termination "Game drawn by agreement"]

1. c4 {[%clk 0:03:01.9]} 1... Nf6 {[%clk 0:03:00.4]} 2. Nc3 {[%clk 0:03:02.4]}
2... e6 {[%clk 0:03:01.4]} 3. e4 {[%clk 0:03:02.8]} 3... c5 {[%clk 0:02:56.8]}
4. e5 {[%clk 0:03:03.7]} 4... Ng8 {[%clk 0:02:57.7]} 5. Nf3 {[%clk 0:03:05.1]}
5... Nc6 {[%clk 0:02:58.8]} 6. d4 {[%clk 0:03:06]} 6... cxd4 {[%clk 0:03:00.4]}
7. Nxd4 {[%clk 0:03:07.5]} 7... Nxe5 {[%clk 0:03:02.1]} 8. Ncb5 {[%clk 0:03:09]}
8... d6 {[%clk 0:02:52.7]} 9. Bf4 {[%clk 0:03:06.3]} 9... Ng6 {[%clk 0:02:34.7]}
10. Bg3 {[%clk 0:02:57]} 10... a6 {[%clk 0:02:34.1]} 11. Nc3 {[%clk 0:02:57.8]}
11... Nf6 {[%clk 0:02:34.3]} 12. Be2 {[%clk 0:02:49.3]} 12... Be7 {[%clk
0:02:35.2]} 13. h4 {[%clk 0:02:47.7]} 13... h5 {[%clk 0:02:27.4]} 14. Nf3 {[%clk
0:02:44.9]} 14... Qc7 {[%clk 0:02:22.5]} 15. Ng5 {[%clk 0:02:44.8]} 15... e5
{[%clk 0:02:07.6]} 16. Nd5 {[%clk 0:02:39.5]} 16... Nxd5 {[%clk 0:02:08.3]} 17.
Qxd5 {[%clk 0:02:40.9]} 17... Be6 {[%clk 0:02:09.7]} 18. Nxe6 {[%clk 0:02:41.5]}
18... fxe6 {[%clk 0:02:00.1]} 19. Qxe6 {[%clk 0:02:43.4]} 19... Nf8 {[%clk
0:01:44.2]} 20. Qf5 {[%clk 0:02:33]} 20... g6 {[%clk 0:01:41.8]} 21. Qe4 {[%clk
0:02:26.3]} 21... O-O-O {[%clk 0:01:38.7]} 22. O-O {[%clk 0:02:12.8]} 22... Ne6
{[%clk 0:01:21]} 23. b4 {[%clk 0:01:48.1]} 23... Bf6 {[%clk 0:00:53.9]} 24. Qxg6
{[%clk 0:01:36.4]} 24... Qe7 {[%clk 0:00:52.4]} 25. c5 {[%clk 0:01:27.2]} 25...
d5 {[%clk 0:00:48.4]} 26. c6 {[%clk 0:01:22.2]} 26... Nd4 {[%clk 0:00:31.1]} 27.
cxb7+ {[%clk 0:01:19.5]} 27... Kxb7 {[%clk 0:00:33]} 28. Qd3 {[%clk 0:01:14.3]}
28... Nxe2+ {[%clk 0:00:33.3]} 29. Qxe2 {[%clk 0:01:16.2]} 29... Rhg8 {[%clk
0:00:19.2]} 30. Rfe1 {[%clk 0:00:47.3]} 30... Qg7 {[%clk 0:00:18.2]} 31. Rac1
{[%clk 0:00:39.4]} 31... Bxh4 {[%clk 0:00:12.3]} 32. Qxe5 {[%clk 0:00:37.8]}
32... Bxg3 {[%clk 0:00:11.2]} 33. Qxg7+ {[%clk 0:00:29.5]} 33... Rxg7 {[%clk
0:00:12]} 34. fxg3 {[%clk 0:00:30.7]} 34... Rxg3 {[%clk 0:00:07]} 35. Re5 {[%clk
0:00:29.5]} 35... Rdg8 {[%clk 0:00:05.7]} 36. Rc2 {[%clk 0:00:29.5]} 36... R3g5
{[%clk 0:00:06.2]} 37. Re7+ {[%clk 0:00:28.7]} 37... Kb6 {[%clk 0:00:07.8]} 38.
a4 {[%clk 0:00:28.2]} 38... R5g6 {[%clk 0:00:05.3]} 39. Re5 {[%clk 0:00:27.9]}
39... Rg5 {[%clk 0:00:05.7]} 40. Re6+ {[%clk 0:00:25.3]} 40... Kb7 {[%clk
0:00:07.1]} 41. Rf2 {[%clk 0:00:24]} 41... R8g7 {[%clk 0:00:07.3]} 42. Rfe2
{[%clk 0:00:19.6]} 42... Rc7 {[%clk 0:00:05.9]} 43. R6e5 {[%clk 0:00:15.4]}
43... Rcg7 {[%clk 0:00:04.6]} 44. Re7+ {[%clk 0:00:13.1]} 44... Rxe7 {[%clk
0:00:05]} 45. Rxe7+ {[%clk 0:00:14.5]} 45... Kb6 {[%clk 0:00:03.9]} 46. Re6+
{[%clk 0:00:16]} 46... Kb7 {[%clk 0:00:05.1]} 47. Kf2 {[%clk 0:00:16.6]} 47...
Rg4 {[%clk 0:00:05.8]} 48. Re5 {[%clk 0:00:16]} 48... Rxb4 {[%clk 0:00:06.7]}
49. Rxd5 {[%clk 0:00:16.8]} 49... h4 {[%clk 0:00:05.3]} 50. Rh5 {[%clk
0:00:07.4]} 50... Kb6 {[%clk 0:00:04.5]} 51. Rh6+ {[%clk 0:00:07.2]} 51... Kb7
{[%clk 0:00:05.1]} 52. Kg1 {[%clk 0:00:08]} 52... Rf4 {[%clk 0:00:05.1]} 53. Kh2
{[%clk 0:00:09.1]} 53... Ka7 {[%clk 0:00:05]} 54. Kh3 {[%clk 0:00:10.6]} 54...
Rxa4 {[%clk 0:00:05.5]} 55. Rxh4 {[%clk 0:00:12]} 55... Ra3+ {[%clk 0:00:06.8]}
56. Kh2 {[%clk 0:00:11.6]} 56... Ra2 {[%clk 0:00:05.7]} 57. Kh3 {[%clk
0:00:10.8]} 57... Ra3+ {[%clk 0:00:06.5]} 58. Kh2 {[%clk 0:00:11.9]} 58... Ra2
{[%clk 0:00:07.9]} 59. Kg1 {[%clk 0:00:12.4]} 59... Kb6 {[%clk 0:00:05.4]} 60.
g4 {[%clk 0:00:13.9]} 60... Ra4 {[%clk 0:00:06.4]} 61. Kg2 {[%clk 0:00:13.9]}
61... a5 {[%clk 0:00:05.9]} 62. Kg3 {[%clk 0:00:14.3]} 62... Ra3+ {[%clk
0:00:06.2]} 63. Kf4 {[%clk 0:00:14.7]} 63... Ra1 {[%clk 0:00:06.2]} 64. Rh6+
{[%clk 0:00:15.7]} 64... Kb5 {[%clk 0:00:07.3]} 65. g5 {[%clk 0:00:16.8]} 65...
a4 {[%clk 0:00:07.4]} 66. g6 {[%clk 0:00:16.4]} 66... Rg1 {[%clk 0:00:05.6]} 67.
Rh5+ {[%clk 0:00:17.3]} 67... Kb4 {[%clk 0:00:06.8]} 68. Rg5 {[%clk 0:00:18.7]}
68... Rf1+ {[%clk 0:00:08.2]} 69. Ke5 {[%clk 0:00:19.9]} 69... Rf8 {[%clk
0:00:07.8]} 70. g7 {[%clk 0:00:20.8]} 70... Rg8 {[%clk 0:00:08.6]} 71. Kf6
{[%clk 0:00:22.2]} 71... a3 {[%clk 0:00:08.9]} 72. Kf7 {[%clk 0:00:23.5]} 72...
Rxg7+ {[%clk 0:00:10.3]} 73. Rxg7 {[%clk 0:00:24.9]} 73... a2 {[%clk 0:00:11]}
1/2-1/2

[Event "*** Titled Tuesday Blitz"]
[Site "Chess.com"]
[Date "2019.12.03"]
[Round "6"]
[White "gusanchutik"]
[Black "VladimirBelous"]
[Result "1/2-1/2"]
[WhiteElo "2959"]
[BlackElo "2752"]
[TimeControl "180+2"]
[EndTime "14:25:58 PST"]
[Termination "Game drawn by agreement"]

1. d4 {[%clk 0:03:01.7]} 1... Nf6 {[%clk 0:02:42.8]} 2. c4 {[%clk 0:03:02.8]}
2... g6 {[%clk 0:02:43.4]} 3. Nc3 {[%clk 0:03:04]} 3... Bg7 {[%clk 0:02:44.5]}
4. e4 {[%clk 0:03:05.2]} 4... d6 {[%clk 0:02:43.1]} 5. h3 {[%clk 0:03:06.4]}
5... O-O {[%clk 0:02:44.6]} 6. Be3 {[%clk 0:03:07.7]} 6... Na6 {[%clk
0:02:45.6]} 7. Nf3 {[%clk 0:03:06.5]} 7... e5 {[%clk 0:02:40.1]} 8. d5 {[%clk
0:03:07.2]} 8... Nc5 {[%clk 0:02:40.9]} 9. Nd2 {[%clk 0:03:08.2]} 9... a5 {[%clk
0:02:42.3]} 10. g4 {[%clk 0:03:08.7]} 10... c6 {[%clk 0:02:41.5]} 11. Qc2 {[%clk
0:03:08.7]} 11... a4 {[%clk 0:02:40.5]} 12. Rg1 {[%clk 0:03:06.2]} 12... Qa5
{[%clk 0:02:41.1]} 13. a3 {[%clk 0:03:05.1]} 13... Bd7 {[%clk 0:02:41.2]} 14.
Be2 {[%clk 0:02:56.6]} 14... Rfc8 {[%clk 0:02:42.4]} 15. g5 {[%clk 0:02:55]}
15... Ne8 {[%clk 0:02:27.7]} 16. h4 {[%clk 0:02:53.2]} 16... Nc7 {[%clk
0:02:27.4]} 17. f3 {[%clk 0:02:30.8]} 17... b5 {[%clk 0:02:18.9]} 18. dxc6
{[%clk 0:02:22.9]} 18... Bxc6 {[%clk 0:02:20.8]} 19. cxb5 {[%clk 0:02:23.8]}
19... Bxb5 {[%clk 0:02:19.4]} 20. Nc4 {[%clk 0:02:11.4]} 20... Bxc4 {[%clk
0:02:19.4]} 21. Bxc4 {[%clk 0:02:13.3]} 21... d5 {[%clk 0:02:13.4]} 22. exd5
{[%clk 0:02:00.8]} 22... e4 {[%clk 0:02:11.4]} 23. fxe4 {[%clk 0:01:54.1]} 23...
Nb5 {[%clk 0:01:38.2]} 24. Bxb5 {[%clk 0:01:28.8]} 24... Bxc3+ {[%clk
0:01:37.5]} 25. bxc3 {[%clk 0:01:27.3]} 25... Qxb5 {[%clk 0:01:39.4]} 26. c4
{[%clk 0:01:28.6]} 26... Nxe4 {[%clk 0:01:06.2]} 27. cxb5 {[%clk 0:01:19.5]}
27... Rxc2 {[%clk 0:01:07.3]} 28. b6 {[%clk 0:01:16.2]} 28... Re8 {[%clk
0:01:06.8]} 29. Rc1 {[%clk 0:01:01.6]} 29... Rb2 {[%clk 0:00:54.5]} 30. Kf1
{[%clk 0:01:02]} 30... Rb3 {[%clk 0:00:50.6]} 31. Bd4 {[%clk 0:00:20.6]} 31...
Nd2+ {[%clk 0:00:51]} 32. Kg2 {[%clk 0:00:17.1]} 32... Re2+ {[%clk 0:00:51.7]}
33. Bf2 {[%clk 0:00:18.7]} 33... Ne4 {[%clk 0:00:53.3]} 34. Rgf1 {[%clk
0:00:14.5]} 34... Rg3+ {[%clk 0:00:26.3]} 35. Kh2 {[%clk 0:00:13.4]} 35... Rb3
{[%clk 0:00:24.1]} 36. Kg2 {[%clk 0:00:14.8]} 36... Rxb6 {[%clk 0:00:24.3]} 37.
Kf3 {[%clk 0:00:14.8]} 37... Rxf2+ {[%clk 0:00:19.5]} 38. Kxe4 {[%clk
0:00:16.1]} 38... Re2+ {[%clk 0:00:11.9]} 39. Kd4 {[%clk 0:00:17.6]} 39... Rb3
{[%clk 0:00:13.2]} 40. Rc8+ {[%clk 0:00:13.1]} 40... Kg7 {[%clk 0:00:13.7]} 41.
Rc7 {[%clk 0:00:14.7]} 41... Rd2+ {[%clk 0:00:15.2]} 42. Ke4 {[%clk 0:00:11.3]}
42... Re2+ {[%clk 0:00:16.4]} 43. Kd4 {[%clk 0:00:12.6]} 43... Rd2+ {[%clk
0:00:17.6]} 44. Ke5 {[%clk 0:00:13.8]} 44... Re2+ {[%clk 0:00:16.3]} 45. Kd6
{[%clk 0:00:14.7]} 45... Rb6+ {[%clk 0:00:11.4]} 46. Kc5 {[%clk 0:00:16]} 46...
Rb8 {[%clk 0:00:12.6]} 47. Rfxf7+ {[%clk 0:00:17.2]} 47... Kg8 {[%clk
0:00:14.5]} 48. Rg7+ {[%clk 0:00:18.7]} 48... Kf8 {[%clk 0:00:16.4]} 49. Rxh7
{[%clk 0:00:17]} 49... Rc2+ {[%clk 0:00:17.6]} 50. Kd4 {[%clk 0:00:17.9]} 50...
Rxc7 {[%clk 0:00:19.5]} 51. Rxc7 {[%clk 0:00:19.8]} 51... Rb3 {[%clk 0:00:21.3]}
52. d6 {[%clk 0:00:18]} 52... Ke8 {[%clk 0:00:20.7]} 53. Ke5 {[%clk 0:00:14.8]}
53... Rxa3 {[%clk 0:00:21.8]} 54. Kf6 {[%clk 0:00:16.1]} 54... Rd3 {[%clk
0:00:22]} 55. Kxg6 {[%clk 0:00:15.7]} 55... Rxd6+ {[%clk 0:00:23.4]} 56. Kh5
{[%clk 0:00:16.2]} 56... Ra6 {[%clk 0:00:25.3]} 57. Rc2 {[%clk 0:00:16.9]} 57...
a3 {[%clk 0:00:26.4]} 58. Ra2 {[%clk 0:00:18.5]} 58... Kf7 {[%clk 0:00:27.9]}
59. Kg4 {[%clk 0:00:18]} 59... Ra4+ {[%clk 0:00:29.5]} 60. Kf5 {[%clk
0:00:18.7]} 60... Rxh4 {[%clk 0:00:29.4]} 61. Rxa3 {[%clk 0:00:20.4]} 61... Rb4
{[%clk 0:00:30.8]} 62. Ra7+ {[%clk 0:00:18.3]} 62... Kg8 {[%clk 0:00:32]} 63.
Ra6 {[%clk 0:00:18.9]} 63... Rb8 {[%clk 0:00:33.4]} 64. Kg6 {[%clk 0:00:19.2]}
64... Rf8 {[%clk 0:00:34.5]} 65. Kh6 {[%clk 0:00:19.9]} 65... Rc8 {[%clk
0:00:35.7]} 66. Ra7 {[%clk 0:00:20.3]} 66... Rd8 {[%clk 0:00:36.3]} 67. g6
{[%clk 0:00:21]} 67... Rc8 {[%clk 0:00:36.9]} 68. Rb7 {[%clk 0:00:22.4]} 68...
Rd8 {[%clk 0:00:38]} 69. Rg7+ {[%clk 0:00:23.8]} 69... Kh8 {[%clk 0:00:39]} 70.
Ra7 {[%clk 0:00:25.7]} 70... Kg8 {[%clk 0:00:40.2]} 71. Ra5 {[%clk 0:00:26.8]}
71... Rc8 {[%clk 0:00:41.4]} 72. Kg5 {[%clk 0:00:28]} 72... Rd8 {[%clk
0:00:42.5]} 73. Ra6 {[%clk 0:00:29.2]} 73... Rc8 {[%clk 0:00:43.9]} 74. Kf6
{[%clk 0:00:30.9]} 74... Rd8 {[%clk 0:00:45]} 75. Ra5 {[%clk 0:00:32.2]} 75...
Rf8+ {[%clk 0:00:45.7]} 76. Kg5 {[%clk 0:00:33.4]} 76... Rc8 {[%clk 0:00:47.6]}
77. Ra1 {[%clk 0:00:34.2]} 77... Kg7 {[%clk 0:00:48.7]} 78. Ra7+ {[%clk
0:00:34.9]} 78... Kg8 {[%clk 0:00:50.3]} 79. Rh7 {[%clk 0:00:36.8]} 79... Rc5+
{[%clk 0:00:50.3]} 80. Kh6 {[%clk 0:00:38.2]} 80... Rc1 {[%clk 0:00:48.7]} 81.
Rg7+ {[%clk 0:00:39.5]} 81... Kh8 {[%clk 0:00:49.6]} 82. Ra7 {[%clk 0:00:41.4]}
82... Rh1+ {[%clk 0:00:50.5]} 83. Kg5 {[%clk 0:00:42.9]} 83... Rg1+ {[%clk
0:00:52.4]} 84. Kf5 {[%clk 0:00:44]} 84... Rf1+ {[%clk 0:00:53.9]} 85. Ke6
{[%clk 0:00:45.8]} 85... Re1+ {[%clk 0:00:55.3]} 86. Kf7 {[%clk 0:00:46.5]}
86... Rf1+ {[%clk 0:00:56.4]} 87. Ke8 {[%clk 0:00:47.9]} 87... Rf8+ {[%clk
0:00:50.3]} 88. Ke7 {[%clk 0:00:44.4]} 88... Kg7 {[%clk 0:00:50.9]} 89. Ra6
{[%clk 0:00:45.8]} 89... Rf1 {[%clk 0:00:51.8]} 1/2-1/2

[Event "*** Titled Tuesday Blitz"]
[Site "Chess.com"]
[Date "2019.12.03"]
[Round "7"]
[White "Orest_Vovk"]
[Black "RitvarsReimanis"]
[Result "0-1"]
[WhiteElo "2317"]
[BlackElo "2550"]
[TimeControl "180+2"]
[EndTime "14:29:58 PST"]
[Termination "RitvarsReimanis won by resignation"]

1. d4 {[%clk 0:03:01.9]} 1... Nf6 {[%clk 0:03:00.3]} 2. Nf3 {[%clk 0:03:01.3]}
2... e6 {[%clk 0:02:56]} 3. Bg5 {[%clk 0:03:02.1]} 3... d5 {[%clk 0:02:57.3]} 4.
e3 {[%clk 0:03:02.4]} 4... Be7 {[%clk 0:02:56.6]} 5. Nbd2 {[%clk 0:03:03.4]}
5... Nbd7 {[%clk 0:02:54.8]} 6. c4 {[%clk 0:03:04.5]} 6... O-O {[%clk
0:02:54.5]} 7. Rc1 {[%clk 0:03:04.7]} 7... c6 {[%clk 0:02:53.4]} 8. Bd3 {[%clk
0:03:04.8]} 8... Re8 {[%clk 0:02:54.4]} 9. Ne5 {[%clk 0:03:05.8]} 9... Nxe5
{[%clk 0:02:54.5]} 10. dxe5 {[%clk 0:03:07]} 10... Nd7 {[%clk 0:02:56.1]} 11.
Bxe7 {[%clk 0:03:08.3]} 11... Qxe7 {[%clk 0:02:57.6]} 12. f4 {[%clk 0:03:09.7]}
12... f6 {[%clk 0:02:55.2]} 13. cxd5 {[%clk 0:03:06.7]} 13... exd5 {[%clk
0:02:54.3]} 14. Qh5 {[%clk 0:03:01.5]} 14... Nf8 {[%clk 0:02:39.6]} 15. Nf3
{[%clk 0:02:50]} 15... g6 {[%clk 0:02:28.3]} 16. Qh4 {[%clk 0:02:34.8]} 16...
Qb4+ {[%clk 0:02:29.1]} 17. Kf2 {[%clk 0:02:32.1]} 17... fxe5 {[%clk 0:02:29.8]}
18. Nxe5 {[%clk 0:02:32]} 18... Rxe5 {[%clk 0:02:29.4]} 19. a3 {[%clk
0:02:26.2]} 19... Qd2+ {[%clk 0:02:26.1]} 0-1